bitfinex-derivatives/quotes_ETHF0:USTF0_20240822
["timestamp","ask_amount","ask_price","bid_price","bid_amount"]
[1724296361920,0.00460547,2608.8,2608.6,0.22991]
[1724296362113,0.00460547,2608.8,2608.0,1.00483142]
[1724296362114,2.63460547,2608.8,2608.0,1.00483142]
[1724296362420,3.43772,2608.6,2608.2,0.22995]
[1724296362623,0.22993,2608.5,2608.1,0.22996]
[1724296363323,3.43772,2608.6,2608.1,0.22996]
[1724296363522,3.43772,2608.6,2608.2,0.22995]
[1724296364121,0.22993,2608.5,2608.1,0.22996]
[1724296364316,3.43772,2608.6,2608.2,0.22995]
[1724296364625,3.43772,2608.6,2608.1,0.22996]
[1724296365123,3.43772,2608.6,2608.2,0.22995]
[1724296365923,3.2078,2608.6,2607.9,1.0312]
[1724296366514,3.2078,2608.6,2608.2,0.22994]
[1724296366718,3.2078,2608.6,2608.3,0.22994]
[1724296367024,3.2078,2608.6,2608.2,0.22995]
[1724296367218,3.2078,2608.6,2607.9,1.22736602]
[1724296367623,1.5346,2608.7,2607.9,1.22736602]
[1724296367924,1.5346,2608.7,2608.5,0.22992]
[1724296368325,5.3682,2608.7,2608.6,0.22992]
[1724296368526,1.5346,2608.7,2608.1,3.2078]
[1724296368727,1.5346,2608.7,2608.5,0.22992]
[1724296369115,1.5346,2608.7,2608.4,0.22993]
[1724296369320,1.5346,2608.7,2608.5,0.22993]
[1724296369523,1.5346,2608.7,2608.4,0.22993]
[1724296369826,1.76451,2608.7,2608.3,0.22994]
[1724296370027,0.22992,2608.6,2608.2,0.22995]
[1724296370224,0.22994,2608.4,2608.0,0.22997]
[1724296370429,3.43773,2608.5,2607.9,1.0312]
[1724296370630,0.5054,2608.3,2607.9,1.0312]
[1724296370929,0.5023,2608.2,2608.1,0.22996]
[1724296371125,0.5054,2608.3,2608.2,0.22995]
[1724296371421,3.2078,2608.5,2608.4,0.22994]
[1724296371625,4.2155,2608.6,2608.4,0.22994]
[1724296372524,4.2155,2608.6,2608.5,0.22993]
[1724296372525,1.0077,2608.6,2608.5,0.22993]
[1724296374025,4.089,2608.7,2608.6,0.22992]
[1724296374325,0.00460547,2608.8,2608.7,0.22991]
[1724296376429,0.00460547,2608.8,2608.7,4.06351]
[1724296376923,0.506,2609.4,2608.7,4.06351]
[1724296376924,0.506,2609.4,2609.1,0.22987]
[1724296377123,1.0499,2609.3,2609.1,0.22987]
[1724296377624,1.0499,2609.3,2609.0,0.22988]
[1724296377817,1.0499,2609.3,2608.8,0.5079]
[1724296378022,1.05436463,2609.3,2608.8,0.5079]
[1724296378330,1.05436463,2609.3,2609.0,0.22988]
[1724296378622,1.05436463,2609.3,2609.1,0.22987]
[1724296379228,1.05436463,2609.3,2609.2,0.22986]
[1724296379229,0.00446463,2609.3,2609.2,0.22986]
[1724296380227,1.5302,2609.8,2609.2,0.22986]
[1724296380228,1.5302,2609.8,2609.5,0.22984]
[1724296381331,1.53514848,2609.8,2609.5,0.22984]
[1724296381717,1.01424848,2609.8,2609.6,0.22983]
[1724296381932,0.00494848,2609.8,2609.7,0.22982]
[1724296382119,0.00494848,2609.8,2609.7,0.23254787]
[1724296382430,0.00494848,2609.8,2609.7,0.00272787]
[1724296382823,0.00494848,2609.8,2609.7,0.23254787]
[1724296383022,0.00494848,2609.8,2609.7,0.00272787]
[1724296383229,0.00494848,2609.8,2609.7,0.23254787]
[1724296383425,0.00494848,2609.8,2609.7,4.06454787]
[1724296383835,0.00494848,2609.8,2609.7,4.60144787]
[1724296385928,1.5165,2610.4,2609.7,9.37162787]
[1724296386114,1.5165,2610.4,2609.7,0.53962787]
[1724296386315,1.5165,2610.4,2610.0,0.22979]
[1724296386926,1.51953966,2610.4,2610.0,0.22979]
[1724296387233,1.02683966,2610.4,2609.9,3.2078]
[1724296387439,0.00303966,2610.4,2610.3,0.22977]
[1724296388722,0.00303966,2610.4,2610.3,0.73577]
[1724296391435,0.00303966,2610.4,2610.3,0.506]
[1724296391834,0.00303966,2610.4,2610.3,0.73577]
[1724296392343,0.00303966,2610.4,2610.0,1.0506]
[1724296392532,0.00303966,2610.4,2610.1,0.5115]
[1724296392735,0.00303966,2610.4,2610.3,0.22977]
[1724296399443,0.00303966,2610.4,2610.2,3.2078]
[1724296399741,0.00303966,2610.4,2610.1,0.22979]
[1724296399742,3.83423966,2610.4,2610.1,0.22979]
[1724296399946,1.0376,2610.3,2610.1,0.22978]
[1724296400134,1.5283,2610.3,2610.1,0.22978]
[1724296400335,0.00303966,2610.4,2610.1,3.8312]
[1724296400543,0.00303966,2610.4,2610.3,0.22977]
[1724296401939,0.00303966,2610.4,2610.3,1.27457]
[1724296402539,0.00303966,2610.4,2610.3,0.77177]
[1724296402751,3.83423966,2610.4,2609.8,3.43761]
[1724296402952,0.22978,2610.2,2609.8,3.43761]
[1724296403247,0.5007,2610.1,2609.7,0.00272787]
[1724296403748,0.5007,2610.1,2609.9,0.2298]
[1724296403940,0.5007,2610.1,2610.0,0.22979]
[1724296405449,0.5373,2610.3,2610.2,0.22978]
[1724296405954,0.00303966,2610.4,2610.3,0.22977]
[1724296406744,0.00303966,2610.4,2610.1,3.2078]
[1724296406951,0.00303966,2610.4,2610.0,3.54479]
[1724296407345,0.00303966,2610.4,2610.1,0.22978]
[1724296408142,0.00303966,2610.4,2610.0,3.54479]
[1724296408143,0.23279966,2610.4,2610.0,3.54479]
[1724296408549,0.00303966,2610.4,2610.0,3.54479]
[1724296408758,0.00303966,2610.4,2610.1,0.22978]
[1724296409445,0.00303966,2610.4,2610.2,0.22978]
[1724296410950,0.00303966,2610.4,2610.3,0.22977]
[1724296412649,0.00303966,2610.4,2610.3,3.54477]
[1724296413448,0.00303966,2610.4,2610.3,4.05477]
[1724296414246,0.00303966,2610.4,2610.1,3.2078]
[1724296414452,0.22977,2610.3,2609.9,0.2298]
[1724296414651,0.5119,2610.2,2609.9,0.2298]
[1724296414853,3.94948,2610.2,2609.8,5.46831]
[1724296415057,3.7197,2610.2,2609.9,0.2298]
[1724296415377,3.7197,2610.2,2609.8,5.2385]
[1724296415551,3.7197,2610.2,2609.9,0.2298]
[1724296415857,0.2298,2610.0,2609.7,0.00272787]
[1724296416055,1.0228,2609.9,2609.7,0.00272787]
[1724296416254,1.0228,2609.9,2609.7,0.23254787]
[1724296416456,1.0228,2609.9,2609.7,0.00272787]
[1724296416663,0.00303966,2610.4,2609.9,0.2298]
[1724296416857,0.4941,2610.1,2609.9,0.2298]
[1724296417455,0.5013,2610.0,2609.9,0.2298]
[1724296419166,0.5013,2610.0,2609.8,1.28311]
[1724296419364,0.5013,2610.0,2609.8,0.22981]
[1724296420054,0.5013,2610.0,2609.7,0.23253787]
[1724296420253,0.5013,2610.0,2609.7,0.00272787]
[1724296420454,0.2298,2609.9,2609.7,0.00272787]
[1724296420662,0.5013,2610.0,2609.8,0.22981]
[1724296420858,0.5013,2610.0,2609.7,0.00272787]
[1724296421059,0.4941,2610.1,2610.0,0.22979]
[1724296421664,0.4941,2610.1,2609.9,0.2298]
[1724296421864,0.4941,2610.1,2610.0,0.22979]
[1724296422066,0.4941,2610.1,2609.8,1.0248]
[1724296422363,0.4941,2610.1,2609.9,0.2298]
[1724296422665,0.4941,2610.1,2609.7,0.00272787]
[1724296422666,4.3253,2610.1,2609.7,0.00272787]
[1724296422965,0.4941,2610.1,2609.7,0.00272787]
[1724296423467,0.4941,2610.1,2609.8,0.22981]
[1724296423865,0.4941,2610.1,2609.7,0.00272787]
[1724296424058,0.4941,2610.1,2609.8,0.22981]
[1724296424460,0.72389,2610.1,2609.8,0.22981]
[1724296424766,0.4941,2610.1,2609.9,0.2298]
[1724296425457,0.4941,2610.1,2609.8,0.22981]
[1724296425658,0.4941,2610.1,2609.7,0.00272787]
[1724296426258,0.4941,2610.1,2609.9,0.2298]
[1724296426772,0.4941,2610.1,2609.7,0.00272787]
[1724296426955,0.72389,2610.1,2609.8,0.22981]
[1724296429265,7.039,2610.0,2609.7,0.00272787]
[1724296429466,0.22981,2609.9,2609.7,0.00272787]
[1724296429661,0.75071,2609.9,2609.7,0.00272787]
[1724296429866,4.58271,2609.9,2609.7,0.00272787]
[1724296430071,4.3529,2609.9,2609.7,0.00272787]
[1724296430272,4.3529,2609.9,2609.7,0.23254787]
[1724296430474,0.5209,2609.9,2609.7,0.23254787]
[1724296430673,0.5209,2609.9,2609.8,0.22981]
[1724296430875,3.2078,2610.0,2609.9,0.2298]
[1724296431060,3.2078,2610.0,2609.8,1.29511]
[1724296431264,3.2078,2610.0,2609.9,0.2298]
[1724296433570,0.51,2610.1,2610.0,0.2298]
[1724296433872,0.23279966,2610.4,2610.0,0.2298]
[1724296433873,0.4935,2610.3,2610.0,0.2298]
[1724296434074,1.0239,2610.3,2609.9,0.2298]
[1724296434478,1.0239,2610.3,2610.0,0.22979]
[1724296435377,1.0239,2610.3,2609.8,1.0653]
[1724296435567,1.0239,2610.3,2609.8,1.37883869]
[1724296435874,1.0239,2610.3,2610.0,0.22979]
[1724296436175,1.0239,2610.3,2610.1,0.22979]
[1724296436767,1.0239,2610.3,2610.2,0.5051]
[1724296437271,4.8551,2610.3,2610.2,0.5051]
[1724296437464,4.8551,2610.3,2610.0,0.22979]
[1724296437659,1.0239,2610.3,2610.0,0.22979]
[1724296438770,1.25367,2610.3,2610.0,0.22979]
[1724296439077,0.22978,2610.2,2609.8,0.75931]
[1724296439268,1.0239,2610.3,2609.7,0.51202787]
[1724296439582,1.0239,2610.3,2610.0,0.22979]
[1724296439767,1.25367,2610.3,2610.0,0.22979]
[1724296440070,3.2078,2610.1,2609.8,0.22981]
[1724296440277,0.22981,2609.9,2609.7,0.00272787]
[1724296440475,1.0462,2609.8,2609.7,0.00272787]
[1724296441173,4.8782,2609.8,2609.7,0.00272787]
[1724296441478,8.086,2609.8,2609.7,0.00272787]
[1724296441675,8.31581,2609.8,2609.7,0.00272787]
[1724296441865,13.31581,2609.8,2609.7,0.00272787]
[1724296442065,13.086,2609.8,2609.7,0.00272787]
[1724296442269,13.31581,2609.8,2609.7,0.00272787]
[1724296443066,14.286,2609.8,2609.2,0.00575098]
[1724296443266,3.43764,2609.5,2609.2,0.00575098]
[1724296443480,1.0247,2609.4,2609.2,0.00575098]
[1724296443774,0.5049,2609.3,2609.2,0.00575098]
[1724296444168,9.56756,2609.3,2609.2,0.00999495]
[1724296444675,9.3377,2609.3,2609.2,0.00999495]
[1724296445084,9.56756,2609.3,2609.2,0.00999495]
[1724296445385,0.22988,2609.0,2608.4,4.84543142]
[1724296445574,0.9954,2608.9,2608.6,0.22991]
[1724296445773,0.5333,2608.8,2608.6,0.22991]
[1724296446073,0.5333,2608.8,2608.4,4.3782]
[1724296446074,0.5333,2608.8,2608.7,0.22991]
[1724296446268,0.5333,2608.8,2608.5,0.22993]
[1724296446466,0.5333,2608.8,2608.6,0.22992]
[1724296447580,0.5333,2608.8,2608.5,0.23316217]
[1724296448480,0.50385098,2608.9,2608.5,0.00324217]
[1724296448686,0.00575098,2608.9,2608.5,0.00324217]
[1724296448983,0.00575098,2608.9,2608.7,0.22991]
[1724296449568,0.00575098,2608.9,2608.8,0.2299]
[1724296449784,3.83855098,2608.9,2608.5,0.23317217]
[1724296450076,0.00575098,2608.9,2608.5,0.23317217]
[1724296450781,0.00575098,2608.9,2608.5,0.00324217]
[1724296450968,0.00575098,2608.9,2608.6,0.22992]
[1724296451173,0.00575098,2608.9,2608.7,0.22991]
[1724296451374,0.00575098,2608.9,2608.8,0.2299]
[1724296451882,0.00575098,2608.9,2608.8,4.0627]
[1724296452781,0.00575098,2608.9,2608.8,9.0627]
[1724296454979,0.00575098,2608.9,2608.8,4.0627]
[1724296456086,0.00575098,2608.9,2608.8,4.37398603]
[1724296456879,4.2423,2609.5,2609.2,0.22986]
[1724296457889,4.2423,2609.5,2608.9,1.4903]
[1724296458181,4.2423,2609.5,2609.4,0.22985]
[1724296458182,1.0345,2609.5,2609.4,0.22985]
[1724296458490,3.2078,2610.0,2609.6,0.22983]
[1724296458790,1.0115,2609.9,2609.6,0.22983]
[1724296462088,1.0115,2609.9,2609.7,0.22982]
[1724296462394,1.0115,2609.9,2609.4,0.5152]
[1724296462395,1.0115,2609.9,2609.8,0.22981]
[1724296462893,0.5268,2610.1,2609.9,0.2298]
[1724296464895,0.5268,2610.1,2609.8,0.75381]
[1724296465488,0.5268,2610.1,2609.9,0.2298]
[1724296465793,1.0346,2610.2,2610.0,0.2298]
[1724296468991,4.2424,2610.2,2610.0,0.2298]
[1724296469692,4.2424,2610.2,2610.1,0.22979]
[1724296470594,4.2424,2610.2,2610.0,0.22979]
[1724296473600,4.2424,2610.2,2609.8,1.34661176]
[1724296473601,4.2424,2610.2,2610.1,0.22979]
[1724296474687,0.50973966,2610.4,2610.3,0.22977]
[1724296474894,1.02353966,2610.4,2610.3,0.22977]
[1724296475693,1.02353966,2610.4,2610.3,4.06097]
[1724296475694,0.00303966,2610.4,2610.3,4.06097]
[1724296477202,0.00303966,2610.4,2610.3,0.22977]
[1724296479798,0.53653966,2610.4,2610.3,0.22977]
[1724296480303,0.53653966,2610.4,2610.1,0.31666935]
[1724296480495,3.43759,2610.3,2609.7,4.19175098]
[1724296480701,0.5281,2610.2,2609.9,0.22982]
[1724296481101,0.5346,2610.1,2609.7,4.19175098]
[1724296481304,0.5346,2610.1,2609.7,4.68785098]
[1724296481602,0.5346,2610.1,2609.8,0.22983]
[1724296482403,0.5346,2610.1,2609.9,0.22982]
[1724296483100,0.5346,2610.1,2609.8,0.22983]
[1724296483606,0.5346,2610.1,2609.7,4.19175098]
[1724296483607,0.5346,2610.1,2609.9,0.22982]
[1724296484305,0.5346,2610.1,2609.8,0.22983]
[1724296484712,3.7424,2610.1,2609.8,0.22983]
[1724296485711,3.7424,2610.1,2609.9,0.22982]
[1724296486616,3.7424,2610.1,2609.7,0.00575098]
[1724296486814,3.7424,2610.1,2610.0,0.22982]
[1724296487410,7.5736,2610.1,2610.0,0.22982]
[1724296487617,3.7424,2610.1,2610.0,0.22982]
[1724296487815,0.5346,2610.1,2610.0,0.22982]
[1724296488813,0.5346,2610.1,2609.8,0.22983]
[1724296489003,0.5346,2610.1,2609.7,0.00575098]
[1724296489004,3.7424,2610.1,2609.7,0.00575098]
[1724296489203,3.2078,2609.8,2609.7,0.00575098]
[1724296489609,7.5403,2609.8,2609.7,0.00575098]
[1724296490120,12.5403,2609.8,2609.7,0.00575098]
[1724296490819,12.77013,2609.8,2609.7,0.00575098]
[1724296491117,12.5403,2609.8,2609.7,0.00575098]
[1724296491507,7.77013,2609.8,2609.7,0.00575098]
[1724296491819,12.77013,2609.8,2609.7,0.00575098]
[1724296492016,12.5403,2609.8,2609.7,0.00575098]
[1724296493019,7.5403,2609.8,2609.7,0.00575098]
[1724296493617,7.5403,2609.8,2609.7,0.23559098]
[1724296494011,7.5403,2609.8,2609.7,0.00575098]
[1724296494420,7.77013,2609.8,2609.7,0.00575098]
[1724296494823,7.5403,2609.8,2609.7,0.00575098]
[1724296495620,7.77013,2609.8,2609.7,0.00575098]
[1724296496014,7.5403,2609.8,2609.7,0.00575098]
[1724296497110,7.77013,2609.8,2609.7,0.00575098]
[1724296498622,12.77013,2609.8,2609.7,0.00575098]
[1724296499226,13.34472,2609.8,2609.7,0.00575098]
[1724296499423,13.38472,2609.8,2609.7,0.00575098]
[1724296500229,13.38472,2609.8,2608.8,0.492]
[1724296500230,0.2299,2609.2,2608.8,0.492]
[1724296500433,0.57462,2609.7,2608.7,0.22993]
[1724296500434,3.43771,2609.0,2608.7,0.22993]
[1724296500731,0.5065,2608.9,2608.8,0.22992]
[1724296502422,0.5065,2608.9,2608.6,1.07375098]
[1724296502623,0.5065,2608.9,2608.8,0.22992]
[1724296503226,0.5065,2608.9,2608.7,0.22993]
[1724296503829,1.03245098,2609.1,2608.7,3.315]
[1724296504030,1.03245098,2609.1,2608.9,0.22991]
[1724296504737,1.03245098,2609.1,2608.8,0.22992]
[1724296505327,1.03245098,2609.1,2608.9,0.22991]
[1724296505933,1.03245098,2609.1,2608.8,0.22992]
[1724296506131,1.26235098,2609.1,2608.6,1.07375098]
[1724296506331,0.22991,2609.0,2608.6,1.30368098]
[1724296506534,0.5334,2608.9,2608.6,0.76268098]
[1724296507738,0.5334,2608.9,2608.6,0.00575098]
[1724296507739,0.22992,2608.8,2608.6,0.00575098]
[1724296508240,0.5393,2608.7,2608.6,0.00575098]
[1724296511741,0.5393,2608.7,2608.6,0.23569098]
[1724296511944,0.5393,2608.7,2608.6,0.77359098]
[1724296512848,0.5334,2608.9,2608.6,0.77359098]
[1724296513145,0.5187,2608.8,2608.6,0.77359098]
[1724296513337,0.5187,2608.8,2608.7,0.22993]
[1724296513738,0.5187,2608.8,2608.7,0.76473]
[1724296514246,0.5187,2608.8,2608.6,0.54365098]
[1724296514247,0.5187,2608.8,2608.6,0.77359098]
[1724296514436,1.8987,2608.8,2608.6,0.77359098]
[1724296515347,1.8987,2608.8,2608.6,0.54365098]
[1724296515540,1.8987,2608.8,2608.6,0.77358098]
[1724296515850,1.8987,2608.8,2608.7,0.22993]
[1724296517138,3.2078,2609.0,2608.9,0.22991]
[1724296518045,1.38,2609.0,2608.6,0.54365098]
[1724296518234,4.81771,2609.0,2608.7,0.22993]
[1724296518439,3.2078,2609.0,2608.9,0.22991]
[1724296519041,0.50535098,2609.1,2608.9,0.22991]
[1724296520437,0.73525098,2609.1,2608.9,0.22991]
[1724296520639,0.00575098,2609.1,2609.0,0.2299]
[1724296520945,3.2078,2609.9,2609.6,0.22985]
[1724296521248,0.5404,2609.8,2609.5,0.22986]
[1724296521445,1.0506,2609.8,2609.6,0.22985]
[1724296521844,1.28044,2609.8,2609.5,0.22986]
[1724296522043,1.0506,2609.8,2609.5,0.22986]
[1724296522349,1.0506,2609.8,2609.6,0.22985]
[1724296522747,0.5403,2610.2,2609.6,0.22985]
[1724296522748,3.2078,2610.2,2609.7,3.832]
[1724296522950,3.2078,2610.2,2609.9,0.22982]
[1724296523154,3.2078,2610.2,2609.8,0.75643]
[1724296523654,3.2078,2610.2,2609.9,0.22982]
[1724296523842,3.2078,2610.2,2609.8,0.5266]
[1724296523843,3.2078,2610.2,2609.8,0.75643]
[1724296524245,3.2078,2610.2,2609.9,0.22982]
[1724296524947,3.2078,2610.2,2609.8,0.75643]
[1724296525150,3.2078,2610.2,2609.8,0.5266]
[1724296525543,0.5078,2610.1,2609.8,0.5266]
[1724296526055,0.5078,2610.1,2609.0,3.313]
[1724296526056,3.2078,2609.9,2609.0,3.313]
[1724296526250,0.527,2609.8,2609.4,0.5022]
[1724296526748,0.527,2609.8,2609.5,0.4986]
[1724296526944,3.2078,2609.6,2609.0,0.8145275]
[1724296527150,3.2078,2609.3,2609.0,1.0008]
[1724296527349,0.527,2609.2,2609.0,1.0008]
[1724296527750,0.5416,2609.1,2609.0,1.0008]
[1724296528050,3.2078,2609.3,2609.0,1.2307]
[1724296528243,3.2078,2609.3,2609.0,1.0008]
[1724296528760,3.2078,2609.3,2609.0,1.2307]
[1724296528970,3.2078,2609.3,2609.0,1.0008]
[1724296531850,3.2078,2609.3,2609.0,1.2307]
[1724296532955,0.5416,2609.4,2609.0,1.0008]
[1724296533161,0.4997,2609.6,2609.3,0.22987]
[1724296533365,3.2078,2609.7,2609.4,0.72206]
[1724296533558,3.2078,2609.7,2609.4,0.4922]
[1724296534062,3.2078,2609.7,2609.4,0.72206]
[1724296534264,3.2078,2609.7,2609.5,0.22986]
[1724296534453,3.2078,2609.7,2609.5,0.73046]
[1724296535060,3.2078,2609.7,2609.5,0.5006]
[1724296535457,3.2078,2609.7,2609.5,0.73046]
[1724296535653,3.2078,2609.7,2609.5,0.5006]
[1724296536061,3.2078,2609.7,2609.6,0.22985]
[1724296536268,3.2078,2610.3,2609.7,0.22984]
[1724296536563,3.2078,2610.3,2610.0,0.22981]
[1724296536863,3.2078,2610.3,2609.5,0.5006]
[1724296537060,3.2078,2610.0,2609.5,0.5006]
[1724296537463,1.0004,2609.9,2609.5,0.5006]
[1724296537661,0.5176,2609.8,2609.5,0.5006]
[1724296538261,0.5176,2609.8,2609.4,0.81470255]
[1724296538456,3.2078,2609.7,2609.4,0.4922]
[1724296538858,3.2078,2609.7,2609.4,0.72207]
[1724296539070,3.2078,2609.7,2609.4,0.4922]
[1724296539567,3.2078,2609.7,2609.2,0.22988]
[1724296539968,3.2078,2609.7,2609.3,0.22988]
[1724296541464,3.2078,2609.7,2609.1,1.36403095]
[1724296541669,3.2078,2609.7,2609.4,0.22987]
[1724296541868,3.2078,2609.7,2609.3,0.22988]
[1724296542761,3.2078,2609.7,2609.2,0.22988]
[1724296542958,3.2078,2609.7,2609.3,0.22988]
[1724296545370,3.2078,2609.4,2608.5,1.5104893]
[1724296545572,0.62,2609.7,2608.6,0.77729098]
[1724296545573,3.2078,2609.0,2608.6,0.77729098]
[1724296545862,3.2078,2609.1,2608.6,0.77728098]
[1724296546062,3.2078,2609.1,2608.6,0.54735098]
[1724296546466,3.2078,2609.1,2609.0,0.2299]
[1724296546859,1.0109,2609.3,2609.2,0.22989]
[1724296547060,3.2078,2609.5,2609.3,0.22987]
[1724296547265,3.2078,2609.5,2609.2,0.22988]
[1724296547569,0.5128,2609.4,2608.7,6.5208]
[1724296547771,0.5128,2609.4,2609.1,0.22989]
[1724296548269,0.5128,2609.4,2609.0,0.2299]
[1724296548769,0.5128,2609.4,2609.1,0.2299]
[1724296548770,3.2078,2609.2,2609.1,0.2299]
[1724296548962,3.2078,2609.2,2609.0,0.2299]
[1724296549159,0.5118,2609.1,2609.0,0.2299]
[1724296549360,0.5118,2609.1,2608.8,0.72122]
[1724296549560,1.0179,2609.1,2608.8,0.72122]
[1724296549766,1.0179,2609.1,2608.9,0.22991]
[1724296550472,0.5118,2609.1,2609.0,0.2299]
[1724296550672,0.5118,2609.1,2608.9,0.22991]
[1724296550871,0.5118,2609.1,2609.0,0.2299]
[1724296551071,0.5118,2609.1,2608.9,0.22991]
[1724296551464,0.5118,2609.1,2609.0,0.2299]
[1724296552971,0.5118,2609.1,2608.9,0.22991]
[1724296553272,0.5311,2609.0,2608.9,0.22991]
[1724296553865,0.5311,2609.0,2608.8,0.22992]
[1724296554066,0.5311,2609.0,2608.7,0.22993]
[1724296554267,0.5311,2609.0,2608.8,0.22992]
[1724296554662,0.5311,2609.0,2608.6,0.23568098]
[1724296554867,3.2078,2608.7,2608.6,0.00575098]
[1724296556263,7.0414,2608.7,2608.6,0.00575098]
[1724296556965,7.547,2608.7,2608.6,0.00575098]
[1724296557169,3.2078,2608.7,2608.6,0.23569098]
[1724296557677,0.5056,2608.9,2608.8,0.22992]
[1724296558566,0.5311,2609.0,2608.9,0.22991]
[1724296561068,0.5311,2609.0,2608.8,0.22992]
[1724296562474,0.5311,2609.0,2608.7,0.22993]
[1724296563381,0.5311,2609.0,2608.6,0.23568098]
[1724296563679,0.761,2609.0,2608.6,0.23568098]
[1724296564177,0.5311,2609.0,2608.7,0.22993]
[1724296564573,3.2078,2608.8,2608.6,0.00575098]
[1724296564774,0.5329,2608.7,2608.6,0.00575098]
[1724296569170,3.7407,2608.7,2608.6,0.00575098]
[1724296571382,3.7407,2608.7,2608.6,0.23569098]
[1724296571570,3.2078,2608.7,2608.6,0.23569098]
[1724296571778,3.2078,2608.7,2608.6,5.08769098]
[1724296573577,0.5311,2609.0,2608.9,0.22991]
[1724296573773,3.7196,2609.1,2609.0,0.2299]
[1724296574381,4.2532,2609.1,2609.0,0.2299]
[1724296574675,3.2078,2609.1,2609.0,0.2299]
[1724296574989,7.2968,2609.7,2609.0,3.8328]
[1724296575175,7.2968,2609.7,2609.6,0.22985]
[1724296575176,3.2078,2609.7,2609.6,0.22985]
[1724296575578,3.2078,2609.7,2609.3,0.22988]
[1724296575882,3.2078,2609.4,2609.2,0.22989]
[1724296577185,0.5422,2609.3,2609.2,0.22989]
[1724296577384,1.0641,2609.3,2609.2,0.22989]
[1724296577984,1.0641,2609.3,2609.1,0.22989]
[1724296578283,0.4994,2609.2,2609.1,0.2299]
[1724296579289,1.0641,2609.3,2609.2,0.22989]
[1724296579488,0.5422,2609.3,2609.2,0.22989]
[1724296579687,3.2078,2609.7,2609.5,0.22985]
[1724296579983,0.5019,2609.6,2609.5,0.22985]
[1724296581378,0.5019,2609.6,2609.4,0.22986]
[1724296581584,0.5019,2609.6,2609.3,1.0398]
[1724296581786,0.5019,2609.6,2609.4,0.22987]
[1724296581986,1.015,2609.6,2609.4,0.22987]
[1724296582182,1.5042,2609.6,2609.3,1.26967]
[1724296582986,3.2078,2609.4,2609.0,3.2078]
[1724296583187,3.43767,2609.4,2609.0,3.4377]
[1724296583386,3.2078,2609.4,2608.9,0.5353]
[1724296583686,3.2078,2609.4,2609.3,0.22988]
[1724296583893,3.2078,2609.4,2609.2,0.22988]
[1724296584080,3.2078,2609.4,2608.9,0.847841]
[1724296584482,3.2078,2609.4,2609.3,0.22988]
[1724296585491,1.5042,2609.6,2609.3,0.22988]
[1724296585988,1.5042,2609.6,2609.0,3.2078]
[1724296585989,3.2078,2609.8,2609.6,0.22985]
[1724296586179,3.2078,2609.8,2609.7,0.22984]
[1724296586581,3.2078,2610.3,2609.7,3.832]
[1724296586791,3.7024,2610.3,2609.9,0.22983]
[1724296586987,3.7024,2610.3,2610.0,0.22982]
[1724296587587,3.7024,2610.3,2609.9,0.5061]
[1724296587588,3.7024,2610.3,2609.9,0.73592]
[1724296588191,3.7024,2610.3,2609.9,0.5061]
[1724296588392,3.2078,2610.3,2609.9,0.5061]
[1724296589192,3.2078,2610.3,2610.1,0.2298]
[1724296589995,3.2078,2610.3,2610.2,0.5132]
[1724296590499,3.2078,2610.3,2609.9,0.74167098]
[1724296590700,0.5227,2610.2,2609.9,1.25487098]
[1724296592196,0.5227,2610.2,2610.0,0.22981]
[1724296593797,0.5227,2610.2,2610.1,0.22981]
[1724296594002,3.2078,2610.3,2610.2,0.2298]
[1724296594803,3.2078,2610.3,2610.2,4.061]
[1724296595302,0.00303966,2610.4,2610.3,0.22979]
[1724296595503,0.00303966,2610.4,2610.3,5.09679]
[1724296595900,0.00303966,2610.4,2610.3,1.26559]
[1724296596094,0.00303966,2610.4,2609.9,0.82283892]
[1724296596292,0.00303966,2610.4,2610.0,0.22981]
[1724296596704,3.2078,2610.3,2610.0,0.22981]
[1724296596902,0.5359,2610.2,2609.9,0.00575098]
[1724296597108,0.4991,2610.1,2609.9,0.00575098]
[1724296597706,0.4991,2610.1,2609.9,0.23557098]
[1724296598003,0.4991,2610.1,2609.9,0.00575098]
[1724296600206,3.7069,2610.1,2609.9,0.00575098]
[1724296601507,7.5381,2610.1,2609.9,0.00575098]
[1724296602111,3.7069,2610.1,2610.0,0.22982]
[1724296602307,3.7069,2610.1,2609.9,0.23557098]
[1724296603406,3.7069,2610.1,2610.0,0.22982]
[1724296603808,3.7069,2610.1,2609.9,0.23557098]
[1724296604305,7.5381,2610.1,2609.9,0.00575098]
[1724296605707,3.8312,2610.0,2609.9,0.00575098]
[1724296605910,4.06102,2610.0,2609.9,0.00575098]
[1724296606105,3.93671,2610.1,2609.9,0.00575098]
[1724296606311,3.2078,2610.1,2609.9,0.00575098]
[1724296606513,0.5297,2610.0,2609.9,0.00575098]
[1724296607507,0.5297,2610.0,2609.9,0.23558098]
[1724296608713,3.2078,2610.1,2609.9,0.23558098]
[1724296608714,3.2078,2610.1,2610.0,0.22982]
[1724296609813,7.26881,2610.1,2609.9,0.00575098]
[1724296610010,0.22982,2610.0,2609.9,0.00575098]
[1724296610207,7.26881,2610.1,2609.9,0.00575098]
[1724296611111,0.22982,2610.0,2609.9,0.00575098]
[1724296611311,7.26882,2610.1,2609.9,0.00575098]
[1724296612113,0.22982,2610.0,2609.9,0.00575098]
[1724296612513,3.8312,2610.0,2609.9,0.00575098]
[1724296612706,4.2599,2610.1,2610.0,0.22982]
[1724296613101,8.0911,2610.1,2610.0,0.22982]
[1724296615316,8.0911,2610.1,2609.9,0.00575098]
[1724296615513,4.2599,2610.1,2609.9,0.00575098]
[1724296615714,4.2599,2610.1,2610.0,0.22982]
[1724296616109,3.7185,2610.1,2610.0,0.22982]
[1724296616310,3.7185,2610.1,2610.0,1.30942]
[1724296619513,3.2078,2610.1,2610.0,1.30942]